[Event "Late-Titled-Tuesday-Blitz-March-26-2024"]
[Site "Chess.com"]
[Date "2024.03.26"]
[Round "4"]
[White "newyorkmouse"]
[Black "WindWhistler11"]
[Result "0-1"]
[WhiteElo "2685"]
[BlackElo "2456"]
[TimeControl "180+1"]
[EndTime "14:42:00 PDT"]
[Termination "WindWhistler11 won by checkmate"]

1. b3 {[%clk 0:03:00.9]} 1... Nf6 {[%clk 0:02:52.2]} 2. Bb2 {[%clk 0:03:01.8]}
2... e6 {[%clk 0:02:52.6]} 3. e3 {[%clk 0:03:01]} 3... d5 {[%clk 0:02:53]} 4. f4
{[%clk 0:03:01.4]} 4... g6 {[%clk 0:02:52.8]} 5. Nf3 {[%clk 0:03:01.7]} 5... Bg7
{[%clk 0:02:48.6]} 6. Be2 {[%clk 0:02:59.7]} 6... c5 {[%clk 0:02:42.8]} 7. O-O
{[%clk 0:02:59.7]} 7... Nc6 {[%clk 0:02:43.7]} 8. h3 {[%clk 0:02:58.7]} 8... b6
{[%clk 0:02:41.9]} 9. d3 {[%clk 0:02:55.2]} 9... Bb7 {[%clk 0:02:41.9]} 10. Nbd2
{[%clk 0:02:40.4]} 10... Ne7 {[%clk 0:02:39.1]} 11. c4 {[%clk 0:02:37.1]} 11...
Nf5 {[%clk 0:02:34.8]} 12. Kf2 {[%clk 0:02:32.5]} 12... d4 {[%clk 0:02:20.5]}
13. exd4 {[%clk 0:02:31.3]} 13... Nh5 {[%clk 0:02:18]} 14. g4 {[%clk 0:02:19.4]}
14... Nxf4 {[%clk 0:02:06.2]} 15. gxf5 {[%clk 0:02:18.3]} 15... Nxh3+ {[%clk
0:01:51.4]} 16. Kg3 {[%clk 0:02:04.4]} 16... Ng5 {[%clk 0:01:44.5]} 17. fxe6
{[%clk 0:02:02.8]} 17... Nxe6 {[%clk 0:01:43.1]} 18. Rb1 {[%clk 0:01:58.9]}
18... Qc7+ {[%clk 0:01:40.2]} 19. Kf2 {[%clk 0:01:56.5]} 19... cxd4 {[%clk
0:01:35.5]} 20. b4 {[%clk 0:01:52.9]} 20... O-O-O {[%clk 0:01:28.3]} 21. c5
{[%clk 0:01:50.8]} 21... Bh6 {[%clk 0:01:26.9]} 22. Nc4 {[%clk 0:01:46.1]} 22...
b5 {[%clk 0:01:24.1]} 23. Nd6+ {[%clk 0:01:43.3]} 23... Rxd6 {[%clk 0:01:21.7]}
24. cxd6 {[%clk 0:01:44.2]} 24... Qxd6 {[%clk 0:01:22.5]} 25. Rc1+ {[%clk
0:01:39.6]} 25... Kb8 {[%clk 0:01:21.2]} 26. Qb3 {[%clk 0:01:22.3]} 26... Re8
{[%clk 0:01:10.3]} 27. Rc2 {[%clk 0:00:58.6]} 27... Nf4 {[%clk 0:00:45.6]} 28.
Bc1 {[%clk 0:00:57.5]} 28... Nh3+ {[%clk 0:00:39.7]} 29. Ke1 {[%clk 0:00:53.3]}
29... Qg3+ {[%clk 0:00:39.2]} 30. Kd1 {[%clk 0:00:51]} 30... Nf2+ {[%clk
0:00:33.2]} 31. Rxf2 {[%clk 0:00:51.2]} 31... Qxf2 {[%clk 0:00:33.4]} 32. Bxh6
{[%clk 0:00:50.2]} 32... Bxf3 {[%clk 0:00:31.2]} 33. Bf4+ {[%clk 0:00:38.8]}
33... Ka8 {[%clk 0:00:28.4]} 34. Kc1 {[%clk 0:00:39.4]} 34... Qe1+ {[%clk
0:00:22.8]} 35. Kb2 {[%clk 0:00:37.9]} 35... Rxe2 {[%clk 0:00:23.7]} 36. Rxe2
{[%clk 0:00:27.1]} 36... Qxe2+ {[%clk 0:00:23.8]} 37. Ka3 {[%clk 0:00:27.5]}
37... Qe7 {[%clk 0:00:21.6]} 38. Qc2 {[%clk 0:00:24]} 38... Kb7 {[%clk
0:00:21.6]} 39. Qf2 {[%clk 0:00:22.3]} 39... Bc6 {[%clk 0:00:20.8]} 40. Qxd4
{[%clk 0:00:22.3]} 40... a5 {[%clk 0:00:21.5]} 41. Bd6 {[%clk 0:00:19.3]} 41...
axb4+ {[%clk 0:00:21.4]} 42. Qxb4 {[%clk 0:00:19.2]} 42... Qe2 {[%clk
0:00:19.8]} 43. Qb3 {[%clk 0:00:16.2]} 43... Qe1 {[%clk 0:00:18.4]} 44. Qxf7+
{[%clk 0:00:14.5]} 44... Ka6 {[%clk 0:00:18.9]} 45. Bb4 {[%clk 0:00:12]} 45...
Qc1+ {[%clk 0:00:18.2]} 46. Kb3 {[%clk 0:00:12.5]} 46... Qb1+ {[%clk 0:00:16.7]}
47. Ka3 {[%clk 0:00:13]} 47... Qc1+ {[%clk 0:00:16]} 48. Kb3 {[%clk 0:00:13.6]}
48... Qd1+ {[%clk 0:00:14.8]} 49. Kb2 {[%clk 0:00:12.3]} 49... Qxd3 {[%clk
0:00:12.5]} 50. Qe6 {[%clk 0:00:05.6]} 50... Qc4 {[%clk 0:00:09.6]} 51. Qe7
{[%clk 0:00:04.1]} 51... Qd4+ {[%clk 0:00:07.4]} 52. Ka3 {[%clk 0:00:04.4]}
52... Qd3+ {[%clk 0:00:07.3]} 53. Kb2 {[%clk 0:00:05]} 53... Qd4+ {[%clk
0:00:06.6]} 54. Ka3 {[%clk 0:00:05.2]} 54... Qa7 {[%clk 0:00:05.2]} 55. Qd6
{[%clk 0:00:04.8]} 55... Kb6+ {[%clk 0:00:05.2]} 56. Kb2 {[%clk 0:00:04.8]}
56... Qd7 {[%clk 0:00:05.2]} 57. Bc5+ {[%clk 0:00:04]} 57... Kb7 {[%clk
0:00:05.6]} 58. Qf8 {[%clk 0:00:04.5]} 58... Qd2+ {[%clk 0:00:05.1]} 59. Kb3
{[%clk 0:00:03.5]} 59... Bd5+ {[%clk 0:00:05.4]} 60. Ka3 {[%clk 0:00:03.5]}
60... Qc3# {[%clk 0:00:04.8]} 0-1

[Event "Late-Titled-Tuesday-Blitz-March-26-2024"]
[Site "Chess.com"]
[Date "2024.03.26"]
[Round "4"]
[White "nj123456"]
[Black "lluiss"]
[Result "1-0"]
[WhiteElo "2468"]
[BlackElo "2227"]
[TimeControl "180+1"]
[EndTime "14:42:00 PDT"]
[Termination "nj123456 won by resignation"]

1. e4 {[%clk 0:03:00.9]} 1... c5 {[%clk 0:02:59.6]} 2. c3 {[%clk 0:02:58.5]}
2... d5 {[%clk 0:02:58.9]} 3. exd5 {[%clk 0:02:59.4]} 3... Qxd5 {[%clk
0:02:58.9]} 4. d4 {[%clk 0:03:00]} 4... Nf6 {[%clk 0:02:57.8]} 5. Nf3 {[%clk
0:02:58.2]} 5... Bg4 {[%clk 0:02:57.1]} 6. Be2 {[%clk 0:02:57.8]} 6... e6 {[%clk
0:02:55.6]} 7. O-O {[%clk 0:02:57.4]} 7... Nc6 {[%clk 0:02:54.1]} 8. Be3 {[%clk
0:02:57]} 8... cxd4 {[%clk 0:02:53.8]} 9. cxd4 {[%clk 0:02:57.9]} 9... Be7
{[%clk 0:02:48.7]} 10. Nc3 {[%clk 0:02:57.7]} 10... Qd6 {[%clk 0:02:48.9]} 11.
a3 {[%clk 0:02:57.9]} 11... O-O {[%clk 0:02:43.3]} 12. h3 {[%clk 0:02:58.1]}
12... Bh5 {[%clk 0:02:42.4]} 13. Rc1 {[%clk 0:02:54.5]} 13... Rfd8 {[%clk
0:02:38.7]} 14. Qd2 {[%clk 0:02:51]} 14... Bxf3 {[%clk 0:01:59.9]} 15. Bxf3
{[%clk 0:02:50]} 15... Nxd4 {[%clk 0:02:00.4]} 16. Bxd4 {[%clk 0:02:46]} 16...
Qxd4 {[%clk 0:02:00.3]} 17. Qxd4 {[%clk 0:02:46.9]} 17... Rxd4 {[%clk
0:02:00.3]} 18. Bxb7 {[%clk 0:02:47.8]} 18... Rb8 {[%clk 0:01:58.5]} 19. Nb5
{[%clk 0:02:37.9]} 19... Rd2 {[%clk 0:01:37.1]} 20. Ba6 {[%clk 0:01:57.9]} 20...
Rxb2 {[%clk 0:01:35.2]} 21. Rc7 {[%clk 0:01:52.3]} 21... Bf8 {[%clk 0:01:23.3]}
22. a4 {[%clk 0:01:39.2]} 22... Nd5 {[%clk 0:01:20]} 23. Rxa7 {[%clk 0:01:34.9]}
23... Bc5 {[%clk 0:01:17]} 24. Rb7 {[%clk 0:01:09]} 24... Ra8 {[%clk 0:01:07.3]}
25. Nc7 {[%clk 0:00:47.6]} 25... Rxb7 {[%clk 0:01:03.9]} 26. Bxb7 {[%clk
0:00:48.5]} 26... Rxa4 {[%clk 0:00:26]} 27. Nxd5 {[%clk 0:00:48.5]} 27... exd5
{[%clk 0:00:25]} 28. Bxd5 {[%clk 0:00:49.4]} 28... Rd4 {[%clk 0:00:19.8]} 29.
Bf3 {[%clk 0:00:46.4]} 29... Rd2 {[%clk 0:00:19.8]} 30. g3 {[%clk 0:00:44.6]}
30... g6 {[%clk 0:00:19.8]} 31. Kg2 {[%clk 0:00:45.5]} 31... h5 {[%clk
0:00:19.9]} 32. h4 {[%clk 0:00:46.4]} 32... Kg7 {[%clk 0:00:19.9]} 33. Be4
{[%clk 0:00:44.5]} 33... Bd4 {[%clk 0:00:19.8]} 34. Kf3 {[%clk 0:00:44.6]} 34...
f5 {[%clk 0:00:19.8]} 35. Bc6 {[%clk 0:00:41.9]} 35... Kf6 {[%clk 0:00:19.3]}
36. Bb5 {[%clk 0:00:41]} 36... g5 {[%clk 0:00:18.8]} 37. hxg5+ {[%clk
0:00:40.1]} 37... Kxg5 {[%clk 0:00:19.7]} 38. Be2 {[%clk 0:00:40.3]} 38... Rb2
{[%clk 0:00:17.1]} 39. Rh1 {[%clk 0:00:39]} 39... Rb3+ {[%clk 0:00:13.5]} 40.
Kg2 {[%clk 0:00:39.1]} 40... Rb2 {[%clk 0:00:14.4]} 41. Rxh5+ {[%clk 0:00:36.7]}
41... Kf6 {[%clk 0:00:14.7]} 42. Rh6+ {[%clk 0:00:34.5]} 42... Kg5 {[%clk
0:00:14.3]} 43. Rd6 {[%clk 0:00:32]} 43... Rxe2 {[%clk 0:00:13.2]} 44. Rxd4
{[%clk 0:00:31.7]} 44... Rb2 {[%clk 0:00:13.4]} 45. Rd3 {[%clk 0:00:31]} 45...
Ra2 {[%clk 0:00:13.3]} 46. Kf3 {[%clk 0:00:31]} 46... Rb2 {[%clk 0:00:13.4]} 47.
Ra3 {[%clk 0:00:31.2]} 47... Rc2 {[%clk 0:00:13.4]} 48. Ra8 {[%clk 0:00:28.6]}
48... Rc3+ {[%clk 0:00:13.4]} 49. Kg2 {[%clk 0:00:29.5]} 49... Rc2 {[%clk
0:00:13.2]} 50. Rg8+ {[%clk 0:00:28.9]} 50... Kf6 {[%clk 0:00:12.8]} 51. Kg1
{[%clk 0:00:28.2]} 51... Rd2 {[%clk 0:00:12.1]} 52. Re8 {[%clk 0:00:27.8]} 52...
Rc2 {[%clk 0:00:11.9]} 53. Kf1 {[%clk 0:00:26.9]} 53... Rb2 {[%clk 0:00:11.8]}
54. Kg2 {[%clk 0:00:25.7]} 54... Rc2 {[%clk 0:00:11.4]} 55. Kf3 {[%clk 0:00:26]}
55... Rc3+ {[%clk 0:00:11.4]} 56. Re3 {[%clk 0:00:26.9]} 56... Rc4 {[%clk
0:00:10.9]} 57. Rb3 {[%clk 0:00:26.4]} 57... Kg5 {[%clk 0:00:11]} 58. Kg2 {[%clk
0:00:25.4]} 58... Rd4 {[%clk 0:00:11.2]} 59. Kh3 {[%clk 0:00:25.8]} 59... Rc4
{[%clk 0:00:11.2]} 60. f4+ {[%clk 0:00:26.1]} 60... Kg6 {[%clk 0:00:06.1]} 61.
Kh4 {[%clk 0:00:25.9]} 61... Rc1 {[%clk 0:00:05.9]} 62. Rb6+ {[%clk 0:00:25.8]}
62... Kf7 {[%clk 0:00:05.1]} 63. Kg5 {[%clk 0:00:23.3]} 63... Rg1 {[%clk
0:00:04.9]} 64. Rb3 {[%clk 0:00:22]} 64... Ke6 {[%clk 0:00:05.2]} 65. Re3+
{[%clk 0:00:21.7]} 65... Kf7 {[%clk 0:00:03.6]} 66. Kxf5 {[%clk 0:00:22.6]}
66... Rg2 {[%clk 0:00:03.7]} 67. g4 {[%clk 0:00:22.9]} 67... Rg1 {[%clk
0:00:03.8]} 68. g5 {[%clk 0:00:23.4]} 68... Rg2 {[%clk 0:00:03.5]} 69. Ra3
{[%clk 0:00:23]} 1-0

[Event "Late-Titled-Tuesday-Blitz-March-26-2024"]
[Site "Chess.com"]
[Date "2024.03.26"]
[Round "4"]
[White "ccccvhhhj"]
[Black "sacrifoice"]
[Result "0-1"]
[WhiteElo "2445"]
[BlackElo "2240"]
[TimeControl "180+1"]
[EndTime "14:42:04 PDT"]
[Termination "sacrifoice won by resignation"]

1. e4 {[%clk 0:03:00.9]} 1... c5 {[%clk 0:02:59.6]} 2. Nf3 {[%clk 0:03:01.5]}
2... d6 {[%clk 0:02:59.2]} 3. d4 {[%clk 0:03:02]} 3... cxd4 {[%clk 0:02:59.9]}
4. Nxd4 {[%clk 0:03:02.9]} 4... Nf6 {[%clk 0:03:00]} 5. Nc3 {[%clk 0:03:03.5]}
5... g6 {[%clk 0:02:59.7]} 6. Be3 {[%clk 0:03:03]} 6... Bg7 {[%clk 0:02:59.3]}
7. f3 {[%clk 0:03:03.7]} 7... O-O {[%clk 0:02:59.2]} 8. Qd2 {[%clk 0:03:04.6]}
8... Nc6 {[%clk 0:02:59.4]} 9. g4 {[%clk 0:03:05.4]} 9... Nxd4 {[%clk
0:02:59.2]} 10. Bxd4 {[%clk 0:03:06.3]} 10... Be6 {[%clk 0:02:59.2]} 11. h4
{[%clk 0:03:06.8]} 11... Qa5 {[%clk 0:02:58.1]} 12. h5 {[%clk 0:03:07.3]} 12...
Rfc8 {[%clk 0:02:57.9]} 13. hxg6 {[%clk 0:03:07.7]} 13... hxg6 {[%clk 0:02:57]}
14. g5 {[%clk 0:03:08.4]} 14... Nh5 {[%clk 0:02:49.5]} 15. Bxg7 {[%clk
0:03:08.7]} 15... Kxg7 {[%clk 0:02:49.2]} 16. Bh3 {[%clk 0:03:09.3]} 16... Qe5
{[%clk 0:02:32.7]} 17. O-O-O {[%clk 0:02:57.8]} 17... Bxh3 {[%clk 0:02:24.1]}
18. Rxh3 {[%clk 0:02:57.3]} 18... Qf4 {[%clk 0:02:23.7]} 19. Nd5 {[%clk
0:02:44]} 19... Qxd2+ {[%clk 0:02:08.6]} 20. Rxd2 {[%clk 0:02:44.9]} 20... e6
{[%clk 0:02:01.2]} 21. Ne3 {[%clk 0:02:42.7]} 21... Rc6 {[%clk 0:01:58.8]} 22.
Rh1 {[%clk 0:02:36]} 22... Kf8 {[%clk 0:01:56.7]} 23. b3 {[%clk 0:02:31]} 23...
Ke7 {[%clk 0:01:54.5]} 24. Kb2 {[%clk 0:02:30.7]} 24... Rc5 {[%clk 0:01:42.7]}
25. Rhd1 {[%clk 0:02:29.1]} 25... Rd8 {[%clk 0:01:37.6]} 26. Nc4 {[%clk
0:02:29.2]} 26... Rxg5 {[%clk 0:01:28.8]} 27. Nxd6 {[%clk 0:02:28.7]} 27... Rb8
{[%clk 0:01:18.9]} 28. Nc4 {[%clk 0:02:23.2]} 28... Nf6 {[%clk 0:01:16.5]} 29.
Ne3 {[%clk 0:02:11.7]} 29... Rg3 {[%clk 0:01:09.3]} 30. e5 {[%clk 0:02:10.5]}
30... Nd5 {[%clk 0:01:04.9]} 31. Nxd5+ {[%clk 0:02:06.4]} 31... exd5 {[%clk
0:01:05.8]} 32. Rxd5 {[%clk 0:02:07.3]} 32... Rxf3 {[%clk 0:01:04.5]} 33. a4
{[%clk 0:01:34.7]} 33... Rf2 {[%clk 0:01:03.8]} 34. b4 {[%clk 0:01:27.6]} 34...
Rc8 {[%clk 0:01:02.4]} 35. R1d2 {[%clk 0:01:26.1]} 35... Rxd2 {[%clk 0:00:58.3]}
36. Rxd2 {[%clk 0:01:27]} 36... Rc4 {[%clk 0:00:53.9]} 37. Kb3 {[%clk
0:01:26.2]} 37... Re4 {[%clk 0:00:53.6]} 38. Rd5 {[%clk 0:01:26.3]} 38... g5
{[%clk 0:00:48.3]} 39. b5 {[%clk 0:01:18.2]} 39... g4 {[%clk 0:00:40.7]} 40. c4
{[%clk 0:01:17.2]} 40... g3 {[%clk 0:00:36.1]} 41. Rd3 {[%clk 0:01:12.7]} 41...
g2 {[%clk 0:00:32.7]} 42. Rg3 {[%clk 0:01:11.6]} 42... Re3+ {[%clk 0:00:32.8]}
43. Rxe3 {[%clk 0:01:10]} 43... g1=Q {[%clk 0:00:32.8]} 44. Rc3 {[%clk
0:01:08.7]} 44... Qb1+ {[%clk 0:00:31.5]} 45. Ka3 {[%clk 0:01:07.7]} 45... b6
{[%clk 0:00:29.2]} 46. c5 {[%clk 0:01:04.7]} 46... bxc5 {[%clk 0:00:26.2]} 47.
Rxc5 {[%clk 0:01:05.6]} 47... Qd3+ {[%clk 0:00:21.2]} 48. Kb4 {[%clk 0:01:02.4]}
48... Qd4+ {[%clk 0:00:20.9]} 49. Rc4 {[%clk 0:01:02.4]} 49... Qxe5 {[%clk
0:00:21.1]} 50. a5 {[%clk 0:01:02.4]} 50... Qd6+ {[%clk 0:00:18.6]} 51. Ka4
{[%clk 0:00:59]} 51... f5 {[%clk 0:00:18.2]} 52. Rb4 {[%clk 0:00:54.6]} 52...
Qd1+ {[%clk 0:00:17.3]} 53. Ka3 {[%clk 0:00:54.3]} 53... Qc1+ {[%clk 0:00:16.2]}
54. Ka4 {[%clk 0:00:52.6]} 54... Qc2+ {[%clk 0:00:15.2]} 55. Rb3 {[%clk
0:00:50.7]} 55... f4 {[%clk 0:00:13.5]} 56. b6 {[%clk 0:00:51.1]} 56... axb6
{[%clk 0:00:13.3]} 57. axb6 {[%clk 0:00:52]} 57... Qc6+ {[%clk 0:00:13.4]} 58.
Ka5 {[%clk 0:00:51.6]} 58... Qb7 {[%clk 0:00:13.2]} 59. Rc3 {[%clk 0:00:47.2]}
59... f3 {[%clk 0:00:13.2]} 60. Rc2 {[%clk 0:00:35.5]} 60... Ke6 {[%clk
0:00:13]} 61. Kb5 {[%clk 0:00:27.2]} 61... Qd5+ {[%clk 0:00:12.1]} 62. Rc5
{[%clk 0:00:21.4]} 62... Qb3+ {[%clk 0:00:11.7]} 63. Ka6 {[%clk 0:00:21]} 63...
f2 {[%clk 0:00:11.6]} 64. Rb5 {[%clk 0:00:21]} 64... Qa3+ {[%clk 0:00:11.2]} 65.
Ra5 {[%clk 0:00:21.3]} 65... f1=Q+ {[%clk 0:00:10.5]} 0-1

[Event "Late-Titled-Tuesday-Blitz-March-26-2024"]
[Site "Chess.com"]
[Date "2024.03.26"]
[Round "4"]
[White "dawid498"]
[Black "wild3000"]
[Result "1-0"]
[WhiteElo "2691"]
[BlackElo "2419"]
[TimeControl "180+1"]
[EndTime "14:42:06 PDT"]
[Termination "dawid498 won by checkmate"]

1. d4 {[%clk 0:03:00.9]} 1... d5 {[%clk 0:02:38.8]} 2. Nf3 {[%clk 0:03:01.2]}
2... e6 {[%clk 0:02:38.9]} 3. Bf4 {[%clk 0:03:00.6]} 3... Nf6 {[%clk 0:02:39.3]}
4. e3 {[%clk 0:03:00.9]} 4... b6 {[%clk 0:02:39.5]} 5. Nbd2 {[%clk 0:03:00.9]}
5... Bb7 {[%clk 0:02:39.7]} 6. c3 {[%clk 0:02:59]} 6... Bd6 {[%clk 0:02:39.3]}
7. Bg3 {[%clk 0:02:59.1]} 7... O-O {[%clk 0:02:31.3]} 8. Ne5 {[%clk 0:02:57.3]}
8... Nbd7 {[%clk 0:02:29.7]} 9. f4 {[%clk 0:02:57.5]} 9... Ne4 {[%clk 0:02:27]}
10. Nxe4 {[%clk 0:02:46.3]} 10... dxe4 {[%clk 0:02:26.9]} 11. Be2 {[%clk
0:02:41.6]} 11... f6 {[%clk 0:02:19.6]} 12. Nc4 {[%clk 0:02:38.8]} 12... f5
{[%clk 0:02:14.6]} 13. O-O {[%clk 0:02:37.2]} 13... Nf6 {[%clk 0:02:12.4]} 14.
Nxd6 {[%clk 0:02:36]} 14... cxd6 {[%clk 0:02:12.1]} 15. c4 {[%clk 0:02:36.5]}
15... Rc8 {[%clk 0:02:02.8]} 16. Qb3 {[%clk 0:02:36.4]} 16... Qe7 {[%clk
0:01:55.2]} 17. Rac1 {[%clk 0:02:35.1]} 17... Rc7 {[%clk 0:01:52.1]} 18. Qa3
{[%clk 0:02:21.9]} 18... Ba8 {[%clk 0:01:49.4]} 19. Bh4 {[%clk 0:01:24.2]} 19...
Rfc8 {[%clk 0:01:47.6]} 20. Rc3 {[%clk 0:01:23.5]} 20... Qf8 {[%clk 0:01:42.4]}
21. Rfc1 {[%clk 0:01:21.9]} 21... h6 {[%clk 0:01:32.9]} 22. Bxf6 {[%clk
0:00:41.6]} 22... Qxf6 {[%clk 0:01:32.5]} 23. Qxd6 {[%clk 0:00:41]} 23... Qe7
{[%clk 0:01:26.1]} 24. Qxe7 {[%clk 0:00:41.1]} 24... Rxe7 {[%clk 0:01:27]} 25.
Kf2 {[%clk 0:00:39.9]} 25... Rec7 {[%clk 0:01:21.1]} 26. Ke1 {[%clk 0:00:31.9]}
26... Kf7 {[%clk 0:01:20.8]} 27. Kd2 {[%clk 0:00:32.2]} 27... g5 {[%clk
0:01:20.8]} 28. g3 {[%clk 0:00:32.3]} 28... Bc6 {[%clk 0:01:13.6]} 29. b4 {[%clk
0:00:25.2]} 29... Kf6 {[%clk 0:01:09.7]} 30. b5 {[%clk 0:00:22.6]} 30... Be8
{[%clk 0:00:56.8]} 31. c5 {[%clk 0:00:23]} 31... bxc5 {[%clk 0:00:55.1]} 32.
Rxc5 {[%clk 0:00:22.8]} 32... Rxc5 {[%clk 0:00:53.4]} 33. Rxc5 {[%clk
0:00:22.8]} 33... Rb8 {[%clk 0:00:52.8]} 34. Kc3 {[%clk 0:00:19.6]} 34... Rb7
{[%clk 0:00:48.3]} 35. a4 {[%clk 0:00:19.4]} 35... Ke7 {[%clk 0:00:47.8]} 36.
Kb4 {[%clk 0:00:18.1]} 36... Kd6 {[%clk 0:00:47.6]} 37. Bc4 {[%clk 0:00:16.1]}
37... gxf4 {[%clk 0:00:44.8]} 38. exf4 {[%clk 0:00:12.2]} 38... h5 {[%clk
0:00:40.2]} 39. Re5 {[%clk 0:00:12.3]} 39... Bd7 {[%clk 0:00:37.2]} 40. a5
{[%clk 0:00:12.3]} 40... Rb8 {[%clk 0:00:35.6]} 41. d5 {[%clk 0:00:08]} 41...
exd5 {[%clk 0:00:30.9]} 42. Rxd5+ {[%clk 0:00:08.9]} 42... Ke7 {[%clk
0:00:30.7]} 43. Re5+ {[%clk 0:00:09.5]} 43... Kd6 {[%clk 0:00:30.5]} 44. Bf7
{[%clk 0:00:02.6]} 44... h4 {[%clk 0:00:27.1]} 45. gxh4 {[%clk 0:00:02.8]} 45...
Rf8 {[%clk 0:00:24.2]} 46. Bc4 {[%clk 0:00:02]} 46... Rh8 {[%clk 0:00:23]} 47.
b6 {[%clk 0:00:02.4]} 47... axb6 {[%clk 0:00:23]} 48. axb6 {[%clk 0:00:03.1]}
48... Rxh4 {[%clk 0:00:22.9]} 49. b7 {[%clk 0:00:02.3]} 49... Kc7 {[%clk
0:00:18.6]} 50. Rd5 {[%clk 0:00:01.4]} 50... Bc6 {[%clk 0:00:17.3]} 51. Rxf5
{[%clk 0:00:01.9]} 51... Kxb7 {[%clk 0:00:16.9]} 52. Rf7+ {[%clk 0:00:02.6]}
52... Kb6 {[%clk 0:00:16.9]} 53. Rf6 {[%clk 0:00:03.4]} 53... Kc7 {[%clk
0:00:16.6]} 54. f5 {[%clk 0:00:02.7]} 54... e3 {[%clk 0:00:15.7]} 55. Kc5 {[%clk
0:00:02.9]} 55... Rh7 {[%clk 0:00:13.3]} 56. Rxc6+ {[%clk 0:00:02.8]} 56... Kd7
{[%clk 0:00:13.8]} 57. Rd6+ {[%clk 0:00:03.5]} 57... Kc7 {[%clk 0:00:13.8]} 58.
Re6 {[%clk 0:00:04.2]} 58... Rf7 {[%clk 0:00:13.6]} 59. Rc6+ {[%clk 0:00:03.8]}
59... Kd7 {[%clk 0:00:13.6]} 60. Bxf7 {[%clk 0:00:04.7]} 60... e2 {[%clk
0:00:14.2]} 61. Re6 {[%clk 0:00:05.1]} 61... e1=Q {[%clk 0:00:14]} 62. Rxe1
{[%clk 0:00:06]} 62... Kd8 {[%clk 0:00:14.6]} 63. Kd6 {[%clk 0:00:05.8]} 63...
Kc8 {[%clk 0:00:14.6]} 64. Bd5 {[%clk 0:00:06.3]} 64... Kb8 {[%clk 0:00:15.5]}
65. Kc6 {[%clk 0:00:06.2]} 65... Ka7 {[%clk 0:00:16.1]} 66. Ra1+ {[%clk
0:00:05.7]} 66... Kb8 {[%clk 0:00:16.4]} 67. Ra2 {[%clk 0:00:06.4]} 67... Kc8
{[%clk 0:00:16.6]} 68. Ra8# {[%clk 0:00:07.3]} 1-0